bitfinex/quotes_BTCUSD_20230905
["timestamp","ask_amount","ask_price","bid_price","bid_amount"]
[1693881576229,1.56065766,25719.0,25717.0,0.86469579]
[1693881576230,0.23371003,25718.0,25717.0,0.86469579]
[1693881576405,0.6203553,25718.0,25717.0,0.86469579]
[1693881576850,0.7797553,25718.0,25717.0,0.86469579]
[1693881577888,0.7817553,25718.0,25717.0,0.86469579]
[1693881578310,2.27129527,25718.0,25717.0,0.00924879]
[1693881578529,2.29849527,25718.0,25717.0,0.00924879]
[1693881578736,2.30059527,25718.0,25717.0,0.00924879]
[1693881578945,2.30235527,25718.0,25717.0,0.00924879]
[1693881579146,2.51287989,25718.0,25717.0,0.00924879]
[1693881579365,3.28808489,25718.0,25717.0,0.00924879]
[1693881579534,3.28736489,25718.0,25717.0,0.00924879]
[1693881579738,3.28954489,25718.0,25717.0,0.00924879]
[1693881579946,3.28942489,25718.0,25717.0,0.00924879]
[1693881580156,3.29086489,25718.0,25717.0,0.00924879]
[1693881580361,4.57475673,25718.0,25717.0,4.879e-05]
[1693881580561,0.08,25715.0,25714.0,0.02079496]
[1693881580769,3.82496477,25715.0,25714.0,0.02079496]
[1693881580974,3.79708666,25715.0,25714.0,0.019796]
[1693881581131,3.79708666,25715.0,25713.0,0.019796]
[1693881581132,0.08,25714.0,25713.0,0.019796]
[1693881581323,3.56438938,25714.0,25713.0,9.6e-05]
[1693881581532,4.50089481,25714.0,25713.0,9.6e-05]
[1693881581741,4.49239023,25714.0,25713.0,9.6e-05]
[1693881581964,4.35665873,25714.0,25713.0,9.6e-05]
[1693881582168,4.73558368,25714.0,25713.0,9.6e-05]
[1693881582382,4.79611896,25714.0,25713.0,9.6e-05]
[1693881582607,4.46819826,25714.0,25713.0,9.6e-05]
[1693881582827,0.02,25709.0,25706.0,0.01994647]
[1693881583028,0.02,25709.0,25706.0,0.427907]
[1693881583029,0.88469082,25708.0,25706.0,0.427907]
[1693881583440,0.73003271,25708.0,25705.0,0.85584]
[1693881583662,0.88469082,25708.0,25705.0,0.85584]
[1693881583868,0.73003271,25708.0,25705.0,0.855846]
[1693881584285,1.58192071,25708.0,25705.0,0.855846]
[1693881584500,1.57958071,25708.0,25705.0,0.427923]
[1693881584927,0.0841,25706.0,25705.0,0.427923]
[1693881585142,0.0841,25706.0,25704.0,0.935872]
[1693881585143,0.47074527,25706.0,25704.0,0.427932]
[1693881585368,0.38664527,25705.0,25704.0,0.855875]
[1693881586027,0.38664527,25705.0,25704.0,1.283823]
[1693881586655,0.38864527,25705.0,25704.0,1.283839]
[1693881586857,0.39064527,25705.0,25704.0,1.283839]
[1693881587062,0.004,25705.0,25704.0,1.283839]
[1693881588333,0.004,25705.0,25704.0,1.467939]
[1693881591260,0.004,25705.0,25704.0,1.383839]
[1693881591464,0.004,25705.0,25704.0,1.283839]
[1693881591670,0.01774822,25705.0,25704.0,1.283839]
[1693881596135,0.31263475,25705.0,25704.0,1.283839]
[1693881596882,0.01774822,25705.0,25704.0,1.283839]
[1693881601503,0.01729322,25705.0,25704.0,1.283839]
[1693881606292,0.29180913,25705.0,25704.0,1.283839]
[1693881606980,0.01729322,25705.0,25704.0,1.283839]
[1693881609208,0.233761,25705.0,25704.0,1.283839]
[1693881609431,0.253761,25705.0,25704.0,1.283839]
[1693881610247,0.64040627,25705.0,25704.0,0.855891]
[1693881610885,0.42393849,25705.0,25704.0,0.855891]
[1693881611088,0.02,25704.0,25703.0,0.408848]
[1693881611290,1.96282327,25704.0,25703.0,0.019796]
[1693881611492,2.23656327,25704.0,25703.0,0.019796]
[1693881611690,0.02,25701.0,25700.0,0.778198]
[1693881611989,0.40664527,25701.0,25700.0,0.778198]
[1693881612347,0.40664527,25701.0,25698.0,0.00099686]
[1693881612348,0.02,25699.0,25698.0,0.39012186]
[1693881612577,0.02,25699.0,25698.0,0.77924886]
[1693881612578,0.40664527,25699.0,25698.0,0.77924886]
[1693881612788,0.40664527,25699.0,25698.0,1.167387]
[1693881614051,0.02,25699.0,25698.0,1.167387]
[1693881614893,0.022,25699.0,25698.0,1.167387]
[1693881615165,0.022,25699.0,25698.0,1.251487]
[1693881615365,0.004,25699.0,25698.0,1.251487]
[1693881617395,0.004,25699.0,25698.0,1.371487]
[1693881617755,0.004,25699.0,25698.0,1.671487]
[1693881618165,0.02,25704.0,25698.0,1.671487]
[1693881618373,0.02,25704.0,25703.0,0.0841]
[1693881618581,0.02,25704.0,25703.0,1.640336]
[1693881618960,0.03355269,25704.0,25703.0,1.640336]
[1693881619361,0.66115385,25704.0,25703.0,0.778118]
[1693881619564,0.65915385,25704.0,25703.0,0.778118]
[1693881619744,0.42019796,25704.0,25703.0,0.778118]
[1693881620100,0.42219796,25704.0,25703.0,1.168177]
[1693881620314,0.42419796,25704.0,25703.0,1.168177]
[1693881620711,0.42219796,25704.0,25703.0,1.168177]
[1693881620920,0.42519796,25704.0,25703.0,1.168177]
[1693881621479,0.03855269,25704.0,25703.0,1.252277]
[1693881621688,0.01855269,25704.0,25703.0,1.252277]
[1693881621883,0.03855269,25704.0,25703.0,1.252277]
[1693881622771,0.03655269,25704.0,25703.0,1.251277]
[1693881623108,0.03955269,25704.0,25703.0,1.254277]
[1693881623311,0.03655269,25704.0,25703.0,1.254277]
[1693881623512,0.03955269,25704.0,25703.0,1.257277]
[1693881623919,0.026,25704.0,25703.0,1.257277]
[1693881624133,0.023,25704.0,25703.0,1.254277]
[1693881624339,0.026,25704.0,25703.0,1.257277]
[1693881625009,0.01959335,25704.0,25703.0,1.646336]
[1693881625234,0.02,25706.0,25703.0,1.646336]
[1693881625463,0.02,25706.0,25705.0,0.0841]
[1693881625670,0.02,25706.0,25705.0,2.029245]
[1693881625876,0.02,25709.0,25705.0,2.029245]
[1693881626091,0.02,25710.0,25708.0,0.0841]
[1693881626300,0.02,25710.0,25709.0,1.94478]
[1693881626521,0.02,25711.0,25709.0,2.02888]
[1693881626729,0.21896276,25713.0,25709.0,2.02888]
[1693881626730,0.02,25712.0,25710.0,0.0841]
[1693881626938,0.02,25712.0,25711.0,2.02879]
[1693881627351,0.01316855,25712.0,25711.0,2.02879]
[1693881628416,0.01416855,25712.0,25711.0,2.04679]
[1693881629510,0.01616855,25712.0,25711.0,2.06779]
[1693881629930,0.003,25712.0,25711.0,2.06779]
[1693881632647,0.13854851,25720.0,25716.0,0.5687]
[1693881632862,0.02,25722.0,25719.0,0.0841]
[1693881633065,0.28000626,25722.0,25721.0,0.0841]
[1693881633503,0.28000626,25722.0,25721.0,1.250461]
[1693881633711,0.28000626,25722.0,25721.0,1.166361]
[1693881633712,0.40664527,25722.0,25721.0,1.166361]
[1693881634537,0.40664527,25722.0,25721.0,1.178361]
[1693881634949,0.67609923,25722.0,25721.0,1.178361]
[1693881636472,0.67709923,25722.0,25721.0,1.195361]
[1693881639020,0.67709923,25722.0,25721.0,1.19517781]
[1693881639637,0.40764527,25722.0,25721.0,0.80639081]
[1693881639828,0.40764527,25722.0,25721.0,0.41760381]
[1693881639829,0.59854527,25722.0,25721.0,0.41760381]
[1693881640029,0.80787499,25722.0,25721.0,0.41760381]
[1693881640187,0.79023499,25722.0,25721.0,0.41760381]
[1693881640383,0.70965499,25722.0,25721.0,0.41760381]
[1693881640856,0.62555499,25722.0,25721.0,0.80639081]
[1693881641055,0.69239499,25722.0,25721.0,0.80639081]
[1693881641270,0.69257499,25722.0,25721.0,0.80620762]
[1693881641474,0.69221499,25722.0,25721.0,0.80620762]
[1693881641712,0.69251499,25722.0,25721.0,0.80620762]
[1693881644268,0.63887997,25722.0,25721.0,1.166361]
[1693881645285,0.42097025,25722.0,25721.0,1.166361]
[1693881646001,0.03432498,25722.0,25721.0,1.16617781]
[1693881646405,0.25876864,25722.0,25721.0,1.16617781]
[1693881647674,0.64541391,25722.0,25721.0,1.16617781]
[1693881647997,0.64541391,25722.0,25721.0,0.77739081]
[1693881647998,0.63935768,25722.0,25721.0,0.77739081]
[1693881650474,0.63935768,25722.0,25721.0,1.16617781]
[1693881650680,0.42097025,25722.0,25721.0,1.16617781]
[1693881650887,0.6535783,25722.0,25721.0,1.16617781]
[1693881652725,0.6535783,25722.0,25721.0,1.10005288]
[1693881654842,0.6535783,25722.0,25721.0,0.71126588]
[1693881656325,0.89676755,25722.0,25721.0,0.71126588]
[1693881657337,0.89676755,25722.0,25721.0,0.777574]
[1693881658168,0.89676755,25722.0,25721.0,1.166361]
[1693881662288,0.27751423,25722.0,25721.0,1.166361]
[1693881662683,0.27751423,25722.0,25721.0,1.11579488]
[1693881662884,0.54633668,25722.0,25721.0,1.11579488]
[1693881663226,0.54633668,25722.0,25721.0,0.72700788]
[1693881663227,0.90996767,25722.0,25721.0,0.72700788]
[1693881664578,1.09996767,25722.0,25721.0,0.72700788]
[1693881666188,1.09996767,25722.0,25721.0,0.33822088]
[1693881667308,1.09996767,25722.0,25721.0,0.72700788]
[1693881667753,1.26646767,25722.0,25721.0,0.72700788]
[1693881669161,1.35888833,25722.0,25721.0,0.72700788]
[1693881669366,1.26646767,25722.0,25721.0,0.388787]
[1693881669581,1.26646767,25722.0,25721.0,0.777574]
[1693881669778,1.35888833,25722.0,25721.0,0.777574]
[1693881670192,1.49751933,25722.0,25721.0,0.777574]
[1693881670842,1.40509867,25722.0,25721.0,1.166361]
[1693881671715,0.56032368,25722.0,25721.0,1.166361]
[1693881672256,0.69895468,25722.0,25721.0,1.166361]
[1693881673339,0.56032368,25722.0,25721.0,1.166361]
[1693881673539,0.69895468,25722.0,25721.0,1.166361]
[1693881673751,0.56032368,25722.0,25721.0,1.166361]
[1693881674160,0.69895468,25722.0,25721.0,1.166361]
[1693881676289,0.60614523,25722.0,25721.0,1.166361]
[1693881676916,0.60614523,25722.0,25721.0,1.13913308]
[1693881677282,1.05673092,25722.0,25721.0,1.13913308]
[1693881678234,1.3777063,25722.0,25721.0,1.13913308]
[1693881678989,1.3777063,25722.0,25721.0,1.11190517]
[1693881680198,1.60875797,25722.0,25721.0,1.11190517]
[1693881682340,1.42391664,25722.0,25721.0,1.11190517]
[1693881683862,1.18072739,25722.0,25721.0,1.11190517]
[1693881683987,1.42390885,25722.0,25721.0,1.11190517]
[1693881684389,1.18072739,25722.0,25721.0,1.166361]
[1693881686116,0.91498303,25722.0,25721.0,1.166361]
[1693881686311,0.86994425,25722.0,25721.0,1.166361]
[1693881687686,1.10099592,25722.0,25721.0,1.166361]
[1693881688983,1.10099592,25722.0,25721.0,1.14302279]
[1693881689992,0.86994425,25722.0,25721.0,1.14302279]
[1693881690193,1.10099592,25722.0,25721.0,1.14302279]
[1693881691554,1.37603614,25722.0,25721.0,1.14302279]
[1693881692207,1.14498447,25722.0,25721.0,1.14302279]
[1693881693937,0.86994425,25722.0,25721.0,1.14302279]
[1693881694348,0.54983975,25722.0,25721.0,1.14302279]
[1693881694549,0.36382686,25722.0,25721.0,1.14302279]
[1693881698415,0.45681615,25722.0,25721.0,1.14302279]
[1693881700660,0.31731427,25722.0,25721.0,1.14302279]
[1693881701278,0.45681615,25722.0,25721.0,1.14302279]
[1693881701703,0.31731427,25722.0,25721.0,1.14302279]
[1693881702126,0.45681615,25722.0,25721.0,1.14302279]
[1693881702760,0.31731427,25722.0,25721.0,1.14302279]
[1693881703366,0.45681615,25722.0,25721.0,1.14302279]
[1693881703743,0.31731427,25722.0,25721.0,1.14302279]
[1693881706261,0.45681615,25722.0,25721.0,1.14302279]
[1693881706879,0.31731427,25722.0,25721.0,1.14302279]
[1693881708775,0.20432498,25722.0,25721.0,1.22712279]
[1693881709405,0.20432498,25722.0,25721.0,1.60712279]
[1693881709618,9.8e-07,25722.0,25721.0,1.60712279]
[1693881710022,0.01555502,25722.0,25721.0,1.60712279]
[1693881710348,9.8e-07,25722.0,25721.0,1.60712279]
[1693881710551,0.00200098,25722.0,25721.0,1.63212279]
[1693881711220,0.00300098,25722.0,25721.0,1.65712279]
[1693881711422,0.02,25725.0,25721.0,2.08582279]
[1693881711626,0.02,25725.0,25724.0,0.0841]
[1693881711818,0.02,25725.0,25724.0,2.02781]
[1693881712514,0.03560864,25725.0,25724.0,2.02781]
[1693881712805,0.03560864,25725.0,25724.0,2.04781]
[1693881714347,0.03560864,25725.0,25724.0,2.06581]
[1693881719496,0.22560864,25725.0,25724.0,2.06581]
[1693881720751,0.26305378,25725.0,25724.0,1.592968]
[1693881721161,0.42825378,25725.0,25724.0,1.592968]
[1693881722182,0.20080864,25725.0,25724.0,1.592968]
[1693881729697,0.39080864,25725.0,25724.0,1.592968]
[1693881730572,0.22560864,25725.0,25724.0,1.592968]
[1693881736208,0.86080312,25725.0,25724.0,1.204226]
[1693881736373,0.79241391,25725.0,25724.0,0.038]
[1693881736573,0.78995391,25725.0,25724.0,0.426742]
[1693881736819,0.79211391,25725.0,25724.0,0.815484]
[1693881737167,0.79349391,25725.0,25724.0,0.815484]
[1693881737366,0.88640269,25725.0,25724.0,0.815484]
[1693881737547,0.88580269,25725.0,25724.0,0.815484]
[1693881737752,2.77243292,25725.0,25724.0,0.02]
[1693881737953,2.77243292,25725.0,25721.0,0.388776]
[1693881737954,3.72082592,25725.0,25721.0,0.388776]
[1693881738161,0.1041,25722.0,25721.0,0.388776]
[1693881738417,0.49074527,25722.0,25721.0,0.388779]
[1693881738791,0.59496527,25722.0,25721.0,0.388779]
[1693881738982,0.59496527,25722.0,25721.0,0.413779]
[1693881738983,0.59466527,25722.0,25721.0,0.413779]
[1693881739185,0.59730527,25722.0,25721.0,0.025]
[1693881739385,0.02,25721.0,25720.0,0.777589]
[1693881739586,0.49074527,25721.0,25720.0,0.777589]
[1693881739815,0.57948527,25721.0,25720.0,0.777589]
[1693881740133,0.8751091,25721.0,25720.0,0.777589]
[1693881740334,0.8774491,25721.0,25720.0,0.777589]
[1693881740559,0.8773891,25721.0,25720.0,0.777589]
[1693881740690,0.8771491,25721.0,25720.0,0.777589]
[1693881740897,0.8769691,25721.0,25720.0,0.777589]
[1693881741082,0.8769691,25721.0,25720.0,0.778589]
[1693881741083,1.0345491,25721.0,25720.0,0.778589]
[1693881741305,1.0347891,25721.0,25720.0,0.778589]
[1693881741501,1.0345491,25721.0,25720.0,0.781589]
[1693881741692,1.0342491,25721.0,25720.0,0.39260466]
[1693881741919,0.73784527,25721.0,25720.0,0.392796]
[1693881742126,0.73766527,25721.0,25720.0,0.392796]
[1693881742325,0.73724527,25721.0,25720.0,0.392796]
[1693881742559,0.97754367,25721.0,25720.0,0.392796]
[1693881742750,0.97622367,25721.0,25720.0,0.392796]
[1693881743103,0.97610367,25721.0,25720.0,0.392796]
[1693881743242,0.97622367,25721.0,25720.0,0.392796]
[1693881743599,0.97580367,25721.0,25720.0,0.392796]
[1693881743797,0.97826367,25721.0,25720.0,0.392796]
[1693881744003,0.73904527,25721.0,25720.0,0.388796]
[1693881744166,0.31377768,25720.0,25719.0,0.77743069]
[1693881744379,0.78452295,25720.0,25719.0,0.77743069]
[1693881744576,0.85808295,25720.0,25719.0,0.77743069]
[1693881744777,0.85754295,25720.0,25719.0,0.77743069]
[1693881744958,0.85706295,25720.0,25719.0,0.77743069]
[1693881745302,0.85640295,25720.0,25719.0,0.77743069]
[1693881745458,0.85550295,25720.0,25719.0,0.79743069]
[1693881745663,0.85658295,25720.0,25719.0,0.79743069]
[1693881745859,0.85634295,25720.0,25719.0,0.79743069]
[1693881746089,0.85664295,25720.0,25719.0,0.79724025]
[1693881746298,0.85634295,25720.0,25719.0,0.79724025]
[1693881746501,0.85574295,25720.0,25719.0,0.79724025]
[1693881746663,0.85676295,25720.0,25719.0,0.79724025]
[1693881746859,0.85652295,25720.0,25719.0,0.79724025]
[1693881747059,0.87290261,25720.0,25719.0,0.79724025]
[1693881747308,0.87284261,25720.0,25719.0,0.79724025]
[1693881747515,0.87290261,25720.0,25719.0,0.79724025]
[1693881747716,0.87278261,25720.0,25719.0,0.79724025]
[1693881747860,0.87248261,25720.0,25719.0,0.79724025]
[1693881748058,0.87236261,25720.0,25719.0,0.79724025]
[1693881748314,0.87242261,25720.0,25719.0,0.79724025]
[1693881748482,0.58368493,25720.0,25719.0,0.79704981]
[1693881748702,0.58362493,25720.0,25719.0,0.79704981]
[1693881749076,0.58224493,25720.0,25719.0,0.79704981]
[1693881749253,0.57960493,25720.0,25719.0,0.79704981]
[1693881749492,0.57924493,25720.0,25719.0,0.79704981]
[1693881749695,0.58032493,25720.0,25719.0,0.79704981]
[1693881749895,0.79562378,25720.0,25719.0,0.79704981]
[1693881750112,0.78896378,25720.0,25719.0,0.79704981]
[1693881750290,0.72272378,25720.0,25719.0,0.79704981]
[1693881750892,0.78806378,25720.0,25719.0,0.77762]
[1693881751100,0.72272378,25720.0,25719.0,0.77762]
[1693881751453,0.88532378,25720.0,25719.0,0.77762]
[1693881753216,0.80122378,25720.0,25719.0,0.77742956]
[1693881755541,0.80122378,25720.0,25719.0,0.77723912]
[1693881757810,0.58580493,25720.0,25719.0,0.77704868]
[1693881758109,0.80517511,25720.0,25719.0,0.77704868]
[1693881758446,0.80517511,25720.0,25719.0,0.38823868]
[1693881759270,0.2204451,25719.0,25718.0,0.349942]
[1693881759471,0.62709037,25719.0,25718.0,1.04984]
[1693881759880,0.2404451,25719.0,25718.0,1.04984]
[1693881760439,0.2414451,25719.0,25718.0,1.06684]
[1693881761242,0.2424451,25719.0,25718.0,1.08484]
[1693881761464,0.2424451,25719.0,25718.0,0.69583954]
[1693881761871,0.2424451,25719.0,25718.0,1.04578854]
[1693881762075,0.25959631,25719.0,25718.0,1.04578854]
[1693881763897,0.44959631,25719.0,25718.0,1.04578854]
[1693881781583,0.61579648,25719.0,25718.0,0.34589054]
[1693881781778,0.79274589,25719.0,25718.0,0.34589054]
[1693881781979,0.87452589,25719.0,25718.0,0.34589054]
[1693881782184,0.87482589,25719.0,25718.0,0.34589054]
[1693881782452,0.87584589,25719.0,25718.0,0.34589054]
[1693881782609,0.87608589,25719.0,25718.0,0.34589054]
[1693881782808,0.87578589,25719.0,25718.0,0.34589054]
[1693881783007,0.87542589,25719.0,25718.0,0.34589054]
[1693881783184,0.87548589,25719.0,25718.0,0.34589054]
[1693881783390,0.87428589,25719.0,25718.0,0.34589054]
[1693881783609,0.87434589,25719.0,25718.0,0.34589054]
[1693881783811,1.17052002,25719.0,25718.0,0.34589054]
[1693881784145,1.33276002,25719.0,25718.0,0.34589054]
[1693881784352,1.03628589,25719.0,25718.0,0.34589054]
[1693881784559,1.03622589,25719.0,25718.0,0.34589054]
[1693881784767,1.32239155,25719.0,25718.0,0.34589054]
[1693881784976,1.32215155,25719.0,25718.0,0.34589054]
[1693881785181,1.03592589,25719.0,25718.0,0.34589054]
[1693881785373,2.98202236,25719.0,25718.0,0.035]
[1693881785611,2.97962236,25719.0,25718.0,0.035]
[1693881785813,2.98046236,25719.0,25718.0,0.035]
[1693881785987,2.97608236,25719.0,25718.0,0.035]
[1693881786288,2.97260236,25719.0,25718.0,0.035]
[1693881786543,2.97416236,25719.0,25718.0,0.035]
[1693881786785,2.97320236,25719.0,25718.0,0.035]
[1693881786977,2.62137589,25719.0,25718.0,0.035]
[1693881787111,2.75752906,25719.0,25718.0,0.035]
[1693881787314,2.75632906,25719.0,25718.0,0.035]
[1693881787524,2.61687589,25719.0,25718.0,0.035]
[1693881787718,2.61747589,25719.0,25718.0,0.035]
[1693881787922,2.61711589,25719.0,25718.0,0.035]
[1693881788132,2.61687589,25719.0,25718.0,0.035]
[1693881788383,2.61681589,25719.0,25718.0,0.035]
[1693881788558,2.61645589,25719.0,25718.0,0.035]
[1693881788760,2.61597589,25719.0,25718.0,0.035]
[1693881788962,2.61585589,25719.0,25718.0,0.035]
[1693881789186,2.61465589,25719.0,25718.0,0.035]
[1693881789387,2.61531589,25719.0,25718.0,0.035]
[1693881789727,2.61399589,25719.0,25718.0,0.035]
[1693881789955,2.61489589,25719.0,25718.0,0.035]
[1693881790159,2.61483589,25719.0,25718.0,0.035]
[1693881790360,2.61459589,25719.0,25718.0,0.035]
[1693881790564,2.61207589,25719.0,25718.0,0.035]
[1693881790764,2.61177589,25719.0,25718.0,0.035]
[1693881790882,2.61141589,25719.0,25718.0,0.035]
[1693881791082,2.65801965,25719.0,25718.0,0.035]
[1693881791286,2.75185527,25719.0,25718.0,0.035]
[1693881791531,2.75179527,25719.0,25718.0,0.035]
[1693881791720,2.75341527,25719.0,25718.0,0.035]
[1693881791945,2.75239527,25719.0,25718.0,0.035]
[1693881792145,2.75389527,25719.0,25718.0,0.035]
[1693881792342,2.75353527,25719.0,25718.0,0.035]
[1693881792583,2.75335527,25719.0,25718.0,0.035]
[1693881793019,2.75215527,25719.0,25718.0,0.035]
[1693881793136,2.75143527,25719.0,25718.0,0.035]
[1693881793332,2.75137527,25719.0,25718.0,0.035]
[1693881793538,2.75197527,25719.0,25718.0,0.035]
[1693881793786,2.75191527,25719.0,25718.0,0.035]
[1693881793992,2.6126421,25719.0,25718.0,0.035]
[1693881794144,2.6124021,25719.0,25718.0,0.035]
[1693881794345,3.4023971,25719.0,25718.0,0.035]
[1693881794546,3.54509027,25719.0,25718.0,0.035]
[1693881794793,3.54623027,25719.0,25718.0,0.035]
[1693881794996,3.54641027,25719.0,25718.0,0.035]
[1693881795407,3.38363027,25719.0,25718.0,0.035]
[1693881795586,3.38351027,25719.0,25718.0,0.035]
[1693881795780,3.77249554,25719.0,25718.0,0.035]
[1693881795980,3.77057554,25719.0,25718.0,0.035]
[1693881796175,3.77039554,25719.0,25718.0,0.035]
[1693881796664,3.76697554,25719.0,25718.0,0.035]
[1693881796800,3.76691554,25719.0,25718.0,0.035]
[1693881797005,3.76667554,25719.0,25718.0,0.035]
[1693881797431,3.76649554,25719.0,25718.0,0.035]
[1693881797627,3.76535554,25719.0,25718.0,0.035]
[1693881797846,3.76907554,25719.0,25718.0,0.035]
[1693881798047,3.76925554,25719.0,25718.0,0.035]
[1693881798214,3.76913554,25719.0,25718.0,0.035]
[1693881798415,5.0605765,25719.0,25718.0,0.035]
[1693881798705,6.07190864,25719.0,25718.0,0.035]
[1693881798859,6.10966864,25719.0,25718.0,0.035]
[1693881799083,0.02,25712.0,25711.0,0.33095832]
[1693881799273,0.56130338,25712.0,25711.0,0.33095832]
[1693881799652,0.42265084,25712.0,25711.0,0.33095832]
[1693881799846,0.42265084,25712.0,25710.0,0.700102]
[1693881800047,0.61091375,25711.0,25710.0,0.700102]
[1693881800225,0.63091375,25711.0,25710.0,0.700102]
[1693881801374,0.63291375,25711.0,25710.0,0.725102]
[1693881802113,0.70167375,25711.0,25710.0,0.375051]
[1693881802306,0.63291375,25711.0,25710.0,0.375051]
[1693881802522,0.63491375,25711.0,25710.0,0.398051]
[1693881802729,1.35710227,25711.0,25710.0,0.048]
[1693881802933,1.57397029,25711.0,25710.0,0.048]
[1693881803136,1.48735029,25711.0,25710.0,0.048]
[1693881803352,1.48717029,25711.0,25710.0,0.048]
[1693881803558,0.62505329,25711.0,25710.0,0.048]
[1693881803772,0.40864527,25711.0,25710.0,1.073174]
[1693881803971,0.40664527,25711.0,25710.0,1.050174]
[1693881804180,0.40764527,25711.0,25710.0,1.050174]
[1693881804425,0.40964527,25711.0,25710.0,1.074174]
[1693881804631,0.40964527,25711.0,25710.0,0.99673581]
[1693881804632,0.66032773,25711.0,25710.0,0.99673581]
[1693881805055,0.65832773,25711.0,25710.0,0.97273581]
[1693881805418,0.66132773,25711.0,25710.0,0.97273581]
[1693881807259,0.67732355,25711.0,25710.0,0.97273581]
[1693881808663,0.42664109,25711.0,25710.0,0.97273581]
[1693881809103,0.42664109,25711.0,25710.0,1.050174]
[1693881811566,0.03999582,25711.0,25710.0,1.050174]
[1693881811829,0.03999582,25711.0,25710.0,1.484332]
[1693881812239,0.024,25711.0,25710.0,1.484332]
[1693881813050,0.023,25711.0,25710.0,1.484332]
[1693881813245,0.03943898,25711.0,25710.0,1.484332]
[1693881813515,0.04043898,25711.0,25710.0,1.500332]
[1693881813666,0.03643898,25711.0,25710.0,1.484332]
[1693881813870,0.03743898,25711.0,25710.0,1.499332]
[1693881814202,0.03843898,25711.0,25710.0,1.515332]
[1693881814369,0.03743898,25711.0,25710.0,1.500332]
[1693881814925,0.03843898,25711.0,25710.0,1.431232]
[1693881815830,0.30305953,25711.0,25710.0,1.431232]
[1693881819327,0.6897048,25711.0,25710.0,1.081174]
[1693881822087,0.6897048,25711.0,25710.0,0.731116]
[1693881824002,0.6897048,25711.0,25710.0,1.081174]
[1693881825039,0.6897048,25711.0,25710.0,0.731116]
[1693881826935,2.36772354,25711.0,25710.0,0.031]
[1693881827142,2.95519525,25711.0,25710.0,0.031]
[1693881827341,2.96005525,25711.0,25710.0,0.031]
[1693881827540,2.96845525,25711.0,25710.0,0.031]
[1693881827747,3.27137525,25711.0,25710.0,0.031]
[1693881827948,3.11195525,25711.0,25710.0,0.031]
[1693881828160,3.35771876,25711.0,25710.0,0.031]
[1693881828361,3.11333525,25711.0,25710.0,0.031]
[1693881828650,3.11243525,25711.0,25710.0,0.031]
[1693881828824,3.34680976,25711.0,25710.0,0.016]
[1693881829004,3.01521525,25711.0,25710.0,0.016]
[1693881829166,3.01671525,25711.0,25710.0,0.016]
[1693881829363,3.01905525,25711.0,25710.0,0.016]
[1693881829573,3.03011525,25711.0,25710.0,0.017]
[1693881829805,3.03011525,25711.0,25710.0,0.001]
[1693881829806,3.02863525,25711.0,25710.0,0.001]
[1693881830058,3.01931525,25711.0,25707.0,0.700193]
[1693881830234,3.03990809,25711.0,25710.0,0.002]
[1693881830432,2.80746998,25711.0,25710.0,0.004]
[1693881830635,2.91990998,25711.0,25710.0,0.004]
[1693881830841,2.87348998,25711.0,25707.0,0.350095]
[1693881831047,0.02,25708.0,25707.0,0.350095]
[1693881831414,0.02,25708.0,25707.0,0.351095]
[1693881831621,0.02,25708.0,25707.0,0.350095]
[1693881831622,0.03638694,25708.0,25707.0,0.350095]
[1693881831751,0.3306865,25708.0,25707.0,0.350095]
[1693881831961,0.3332665,25708.0,25707.0,0.350095]
[1693881832342,0.3333865,25708.0,25707.0,0.001]
[1693881832524,0.3329665,25708.0,25707.0,0.001]
[1693881832676,0.3329665,25708.0,25706.0,1.050311]
[1693881832883,0.02,25707.0,25706.0,1.050311]
[1693881834100,0.23041044,25707.0,25706.0,1.050311]
[1693881834509,0.23141044,25707.0,25706.0,1.050311]
[1693881834907,0.021,25707.0,25706.0,1.050311]
[1693881836428,0.023,25707.0,25706.0,1.050311]
[1693881837006,0.03939075,25707.0,25706.0,1.050311]
[1693881839867,0.01939075,25707.0,25706.0,1.134411]
[1693881840318,0.003,25707.0,25706.0,1.134411]
[1693881840846,0.02,25710.0,25706.0,1.134411]
[1693881841061,0.02,25710.0,25709.0,0.0841]
[1693881841271,0.02,25710.0,25709.0,1.484384]
[1693881842651,0.02,25711.0,25709.0,1.484384]
[1693881842853,0.02,25711.0,25710.0,0.0841]
[1693881843288,0.02,25711.0,25710.0,1.134274]
[1693881844116,0.013,25711.0,25710.0,1.135274]
[1693881844331,0.02,25714.0,25712.0,0.0841]
[1693881844537,0.02,25714.0,25713.0,1.834185]
[1693881847018,0.02,25714.0,25713.0,1.849185]
[1693881847225,0.02,25714.0,25713.0,1.863185]
[1693881847226,0.021,25714.0,25713.0,1.863185]
[1693881847645,0.56230338,25714.0,25713.0,1.163151]
[1693881847856,2.38771456,25714.0,25713.0,0.029]
[1693881848062,2.50484726,25714.0,25713.0,0.029]
[1693881848264,2.42224808,25714.0,25713.0,0.029]
[1693881848464,2.42308808,25714.0,25713.0,0.029]
[1693881848675,2.42194808,25714.0,25713.0,0.029]
[1693881848884,2.41854808,25714.0,25713.0,0.014]
[1693881849086,2.41722808,25714.0,25713.0,0.014]
[1693881849290,2.41716808,25714.0,25711.0,0.700071]
[1693881849522,2.04494112,25714.0,25713.0,0.016]
[1693881849733,2.04494112,25714.0,25713.0,0.017]
[1693881849734,1.95472112,25714.0,25713.0,0.017]
[1693881849932,2.04546112,25714.0,25713.0,0.001]
[1693881850133,2.06428112,25714.0,25713.0,0.003]
[1693881850336,2.06470112,25714.0,25713.0,0.003]
[1693881850536,2.35256808,25714.0,25713.0,0.003]
[1693881850696,2.35898808,25714.0,25713.0,0.003]
[1693881851040,2.35910808,25714.0,25713.0,0.003]
[1693881851250,2.35766808,25714.0,25713.0,0.003]
[1693881851543,0.79657608,25714.0,25713.0,0.003]
[1693881851699,0.80575608,25714.0,25713.0,0.003]
[1693881851920,1.57262208,25714.0,25713.0,0.003]
[1693881852121,0.8111632,25714.0,25713.0,0.003]
[1693881852339,0.8115832,25714.0,25713.0,0.003]
[1693881852537,0.9690232,25714.0,25713.0,0.003]
[1693881852883,0.9704632,25714.0,25713.0,0.003]